[Event "EYCC Open-U16 2019"]
[Site "Bratislava"]
[Date "2019.08.04"]
[Round "3.13"]
[White "Ongut, Tamas Gunes"]
[Black "Stoyanov, Tsvetan"]
[Result "0-1"]
[ECO "B06"]
[WhiteElo "2158"]
[BlackElo "2387"]
[Annotator "NA"]
[PlyCount "74"]
[EventDate "2019.08.02"]
[EventType "swiss"]
[EventCountry "SVK"]
[SourceTitle "playchess.com"]
[Source "ChessBase"]
[SourceQuality "1"]
[TimeControl "40/5400+30:1800+30"]

1. e4 {[%emt 0:00:00]} g6 {[%emt 0:00:00]} 2. d4 {[%emt 0:00:00]} Bg7 {[%emt 0:00:00]} 3. Nc3 {[%emt 0:00:00]} c6 {[%emt 0:01:00]} 4. f4 {[%emt 0:00:00]} d6 {[%emt 0:04:59]} 5. Nf3 {[%emt 0:02:52]} Bg4 {[%emt 0:03:30]} 6. Be3 {[%emt 0:07:41]} Nd7 {[%emt 0:11:39]} 7. h3 {[%emt 0:01:09]} Bxf3 {[%emt 0:00:04]} 8. Qxf3 {[%emt 0:00:07]} e6 {[%emt 0:06:39]} 9. Bd3 {[%emt 0:09:02]} Qb6 {[%emt 0:07:24]} 10. O-O-O {[%emt 0:06:39]} Bxd4 {[%emt 0:10:19]} 11. Bxd4 {[%emt 0:00:16]} Qxd4 {[%emt 0:00:01]} 12. e5 {[%emt 0:00:11]} dxe5 {[%emt 0:01:15]} 13. Ne4 {[%emt 0:23:45]} Ngf6 {[%emt 0:10:19]} 14. fxe5 {[%emt 0:14:32]} Nxe4 {[%emt 0:04:59]} 15. Bxe4 {[%emt 0:00:09]} Qxe5 {[%emt 0:00:07]} 16. Rxd7 {[%emt 0:05:57]} Kxd7 {[%emt 0:01:09]} 17. Qxf7+ {[%emt 0:00:15]} Kc8 {[%emt 0:02:32]} 18. Rd1 {[%emt 0:00:16]} Rd8 {[%emt 0:00:48]} 19. Rxd8+ {[%emt 0:05:32]} Kxd8 {[%emt 0:00:01]} 20. Qf8+ {[%emt 0:04:57]} Kc7 {[%emt 0:00:09]} 21. Qxa8 {[%emt 0:00:05]} Qxe4 {[%emt 0:00:03]} 22. b3 {[%emt 0:00:08]} Qxg2 {[%emt 0:01:24]} 23. Qxa7 {[%emt 0:00:06]} Qxh3 {[%emt 0:01:25]} 24. Qa5+ {[%emt 0:00:07]} Kd7 {[%emt 0:00:10]} 25. Qd2+ {[%emt 0:00:37]} Kc8 {[%emt 0:00:49]} 26. Qd4 {[%emt 0:02:13]} Qh6+ {[%emt 0:04:35]} 27. Kb2 {[%emt 0:00:13]} Qf8 {[%emt 0:03:15]} 28. Qe5 {[%emt 0:01:11]} Qe8 {[%emt 0:07:24]} 29. a4 {[%emt 0:00:23]} h5 {[%emt 0:00:45]} 30. a5 {[%emt 0:00:22]} h4 {[%emt 0:04:26]} 31. b4 {[%emt 0:02:22]} g5 {[%emt 0:06:18]} 32. c4 {[%emt 0:01:34]} h3 {[%emt 0:01:20]} 33. b5 {[%emt 0:00:52]} cxb5 {[%emt 0:00:27]} 34. Qc5+ {[%emt 0:00:59]} Kb8 {[%emt 0:01:36]} 35. cxb5 {[%emt 0:00:07]} Qh8+ {[%emt 0:01:10]} 36. Kb3 {[%emt 0:00:07]} h2 {[%emt 0:00:06]} 37. Qd6+ {[%emt 0:00:57]} Ka8 {[%emt 0:00:10]} 0-1

[Event "EYCC Open-U16 2019"]
[Site "Bratislava"]
[Date "2019.08.04"]
[Round "3.14"]
[White "Svane, Frederik"]
[Black "Sjoberg, Isak"]
[Result "1/2-1/2"]
[ECO "E81"]
[WhiteElo "2334"]
[BlackElo "2182"]
[Annotator "NA"]
[PlyCount "91"]
[EventDate "2019.08.02"]
[EventType "swiss"]
[EventCountry "SVK"]
[SourceTitle "playchess.com"]
[Source "ChessBase"]
[SourceQuality "1"]
[TimeControl "40/5400+30:1800+30"]

1. c4 {[%emt 0:00:00]} Nf6 {[%emt 0:03:35]} 2. Nc3 {[%emt 0:00:04]} g6 {[%emt 0:01:29]} 3. d4 {[%emt 0:00:09]} Bg7 {[%emt 0:01:51]} 4. e4 {[%emt 0:00:11]} d6 {[%emt 0:00:58]} 5. f3 {[%emt 0:00:52]} O-O {[%emt 0:01:00]} 6. Be3 {[%emt 0:00:12]} c5 {[%emt 0:02:10]} 7. Nge2 {[%emt 0:01:43]} Nc6 {[%emt 0:03:08]} 8. d5 {[%emt 0:00:16]} Ne5 {[%emt 0:00:37]} 9. Ng3 {[%emt 0:00:18]} e6 {[%emt 0:05:19]} 10. Be2 {[%emt 0:01:30]} exd5 {[%emt 0:00:15]} 11. cxd5 {[%emt 0:00:19]} h5 {[%emt 0:01:38]} 12. O-O {[%emt 0:00:34]} Bd7 {[%emt 0:02:20]} 13. Qd2 {[%emt 0:05:12]} a6 {[%emt 0:09:51]} 14. a4 {[%emt 0:00:13]} b5 {[%emt 0:02:43]} 15. Bg5 {[%emt 0:00:21]} Qb6 {[%emt 0:06:02]} 16. f4 {[%emt 0:15:25]} Neg4 {[%emt 0:09:26]} 17. f5 {[%emt 0:18:39]} Kh7 {[%emt 0:14:30]} 18. Kh1 {[%emt 0:07:09]} c4 {[%emt 0:03:32]} 19. Qf4 {[%emt 0:09:04]} b4 {[%emt 0:05:03]} 20. Nd1 {[%emt 0:00:09]} c3 {[%emt 0:01:21]} 21. h3 {[%emt 0:07:43]} Nh6 {[%emt 0:03:32]} 22. Qh4 {[%emt 0:11:07]} Qd4 {[%emt 0:02:28]} 23. bxc3 {[%emt 0:00:24]} bxc3 {[%emt 0:00:01]} 24. Ne3 {[%emt 0:03:03]} Rae8 {[%emt 0:02:27]} 25. Rad1 {[%emt 0:03:49]} Qc5 {[%emt 0:00:04]} 26. Bxf6 {[%emt 0:05:29]} Qxe3 {[%emt 0:07:59]} 27. Rd3 {[%emt 0:00:34]} Qb6 {[%emt 0:00:41]} 28. Rxc3 {[%emt 0:02:18]} Bxf6 {[%emt 0:04:17]} 29. Qxf6 {[%emt 0:00:04]} Qb2 {[%emt 0:00:06]} 30. Bxh5 {[%emt 0:04:55]} gxh5 {[%emt 0:00:30]} 31. Nxh5 {[%emt 0:00:04]} Rg8 {[%emt 0:00:09]} 32. Rg3 {[%emt 0:00:03]} Qxf6 {[%emt 0:02:41]} 33. Nxf6+ {[%emt 0:00:04]} Kh8 {[%emt 0:00:03]} 34. Rxg8+ {[%emt 0:00:06]} Nxg8 {[%emt 0:00:05]} 35. Nxd7 {[%emt 0:03:03]} Rxe4 {[%emt 0:00:01]} 36. Rb1 {[%emt 0:00:49]} Rxa4 {[%emt 0:01:43]} 37. Rb6 {[%emt 0:00:03]} Ne7 {[%emt 0:01:13]} 38. f6 {[%emt 0:01:02]} Nxd5 {[%emt 0:01:37]} 39. Rxd6 {[%emt 0:00:04]} Ne3 {[%emt 0:00:03]} 40. Ne5 {[%emt 0:00:00]} Ra1+ {[%emt 0:00:00]} 41. Kh2 {[%emt 0:02:23]} Nf1+ {[%emt 0:00:50]} 42. Kg1 {[%emt 0:00:04]} Nd2+ {[%emt 0:00:06]} 43. Kh2 {[%emt 0:00:41]} Nf1+ {[%emt 0:00:10]} 44. Kg1 {[%emt 0:00:36]} Nd2+ {[%emt 0:00:35]} 45. Kh2 {[%emt 0:00:30]} Nf1+ {[%emt 0:00:08]} 46. Kg1 1/2-1/2

[Event "EYCC Open-U16 2019"]
[Site "Bratislava"]
[Date "2019.08.04"]
[Round "3.15"]
[White "Ivanovic, Marko"]
[Black "Sahidi, Samir"]
[Result "0-1"]
[ECO "A39"]
[WhiteElo "2267"]
[BlackElo "2369"]
[Annotator "NA"]
[PlyCount "82"]
[EventDate "2019.08.02"]
[EventType "swiss"]
[EventCountry "SVK"]
[SourceTitle "playchess.com"]
[Source "ChessBase"]
[SourceQuality "1"]
[TimeControl "40/5400+30:1800+30"]

1. Nf3 {[%emt 0:00:00]} Nf6 {[%emt 0:00:00]} 2. g3 {[%emt 0:00:00]} c5 {[%emt 0:00:08]} 3. Bg2 {[%emt 0:00:00]} g6 {[%emt 0:00:43]} 4. O-O {[%emt 0:00:06]} Bg7 {[%emt 0:00:11]} 5. c4 {[%emt 0:09:48]} O-O {[%emt 0:01:55]} 6. Nc3 {[%emt 0:01:08]} Nc6 {[%emt 0:04:27]} 7. d4 {[%emt 0:00:21]} cxd4 {[%emt 0:00:13]} 8. Nxd4 {[%emt 0:00:06]} Nxd4 {[%emt 0:06:40]} 9. Qxd4 {[%emt 0:00:06]} d6 {[%emt 0:00:07]} 10. Qh4 {[%emt 0:09:12]} Qc7 {[%emt 0:08:36]} 11. Bg5 {[%emt 0:08:01]} Be6 {[%emt 0:02:04]} 12. Nd5 {[%emt 0:06:35]} Bxd5 {[%emt 0:00:45]} 13. cxd5 {[%emt 0:00:05]} Qb6 {[%emt 0:03:33]} 14. b3 {[%emt 0:06:28]} Rfc8 {[%emt 0:18:27]} 15. Rac1 {[%emt 0:02:14]} h5 {[%emt 0:07:34]} 16. e3 {[%emt 0:31:46]} Qa5 {[%emt 0:05:46]} 17. a4 {[%emt 0:06:11]} Qd2 {[%emt 0:09:20]} 18. Rc4 {[%emt 0:06:55]} Qb2 {[%emt 0:04:12]} 19. Rb4 {[%emt 0:02:57]} b6 {[%emt 0:05:18]} 20. Rd1 {[%emt 0:01:48]} Rc2 {[%emt 0:03:58]} 21. Rf1 {[%emt 0:00:44]} Rac8 {[%emt 0:00:43]} 22. Be4 {[%emt 0:02:54]} Rd2 {[%emt 0:03:45]} 23. Bxf6 {[%emt 0:01:42]} Bxf6 {[%emt 0:00:16]} 24. Qh3 {[%emt 0:00:03]} Rc1 {[%emt 0:01:01]} 25. Rc4 {[%emt 0:00:45]} Rxf1+ {[%emt 0:00:54]} 26. Qxf1 {[%emt 0:00:02]} Qxb3 {[%emt 0:00:14]} 27. Bf3 {[%emt 0:01:28]} Kg7 {[%emt 0:00:54]} 28. h4 {[%emt 0:02:03]} Qa2 {[%emt 0:01:03]} 29. Kg2 {[%emt 0:00:22]} Rxf2+ {[%emt 0:00:50]} 30. Qxf2 {[%emt 0:00:03]} Qxc4 {[%emt 0:00:06]} 31. Qe2 {[%emt 0:01:04]} Qxa4 {[%emt 0:00:07]} 32. Kh3 {[%emt 0:00:29]} b5 {[%emt 0:01:00]} 33. g4 {[%emt 0:00:02]} hxg4+ {[%emt 0:00:50]} 34. Bxg4 {[%emt 0:00:07]} Qe4 {[%emt 0:00:23]} 35. Qf3 {[%emt 0:00:25]} Qxf3+ {[%emt 0:02:48]} 36. Bxf3 {[%emt 0:00:01]} Bc3 {[%emt 0:00:22]} 37. Be2 {[%emt 0:00:06]} b4 {[%emt 0:00:14]} 38. Bd1 {[%emt 0:00:04]} Kf6 {[%emt 0:00:19]} 39. Ba4 {[%emt 0:00:25]} Bd2 {[%emt 0:00:12]} 40. e4 {[%emt 0:00:00]} Ke5 {[%emt 0:00:00]} 41. Bc2 {[%emt 0:00:10]} Kd4 {[%emt 0:00:26]} 0-1

[Event "EYCC Open-U16 2019"]
[Site "Bratislava"]
[Date "2019.08.04"]
[Round "3.16"]
[White "Bettalli, Francesco"]
[Black "Sorensen, Hampus"]
[Result "1/2-1/2"]
[ECO "A06"]
[WhiteElo "2095"]
[BlackElo "2352"]
[Annotator "NA"]
[PlyCount "49"]
[EventDate "2019.08.02"]
[EventType "swiss"]
[EventCountry "SVK"]
[SourceTitle "playchess.com"]
[Source "ChessBase"]
[SourceQuality "1"]
[TimeControl "40/5400+30:1800+30"]

1. Nf3 {[%emt 0:00:00]} d5 {[%emt 0:00:17]} 2. e3 {[%emt 0:00:30]} Nf6 {[%emt 0:03:31]} 3. b3 {[%emt 0:00:07]} Bg4 {[%emt 0:04:58]} 4. Bb2 {[%emt 0:00:11]} Nbd7 {[%emt 0:01:39]} 5. d4 {[%emt 0:00:35]} e6 {[%emt 0:01:36]} 6. Be2 {[%emt 0:00:13]} Be7 {[%emt 0:04:29]} 7. O-O {[%emt 0:00:18]} O-O {[%emt 0:01:04]} 8. c4 {[%emt 0:00:19]} c6 {[%emt 0:01:56]} 9. Nbd2 {[%emt 0:00:13]} a5 {[%emt 0:02:18]} 10. a3 {[%emt 0:07:23]} h6 {[%emt 0:03:07]} 11. Qc2 {[%emt 0:01:18]} Bf5 {[%emt 0:07:26]} 12. Bd3 {[%emt 0:01:00]} Bxd3 {[%emt 0:00:48]} 13. Qxd3 {[%emt 0:00:01]} Qb6 {[%emt 0:00:19]} 14. c5 {[%emt 0:23:23]} Qa6 {[%emt 0:02:09]} 15. Qxa6 {[%emt 0:00:40]} Rxa6 {[%emt 0:00:16]} 16. b4 {[%emt 0:00:24]} Rfa8 {[%emt 0:09:12]} 17. Nb3 {[%emt 0:10:26]} axb4 {[%emt 0:01:33]} 18. axb4 {[%emt 0:00:54]} Bd8 {[%emt 0:03:42]} 19. Rxa6 {[%emt 0:06:04]} Rxa6 {[%emt 0:00:13]} 20. Ra1 {[%emt 0:00:05]} Rxa1+ {[%emt 0:00:24]} 21. Bxa1 {[%emt 0:00:19]} Bc7 {[%emt 0:03:41]} 22. Nfd2 {[%emt 0:02:00]} Kf8 {[%emt 0:01:35]} 23. Nb1 {[%emt 0:00:20]} Ke7 {[%emt 0:03:24]} 24. Na3 {[%emt 0:01:24]} Kd8 {[%emt 0:01:23]} 25. b5 {[%emt 0:00:42]} 1/2-1/2

[Event "EYCC Open-U16 2019"]
[Site "Bratislava"]
[Date "2019.08.04"]
[Round "3.17"]
[White "Boyer, Mahel"]
[Black "Bin-Suhayl, Ieysaa"]
[Result "1-0"]
[ECO "A58"]
[WhiteElo "2295"]
[BlackElo "2084"]
[Annotator "NA"]
[PlyCount "79"]
[EventDate "2019.08.02"]
[EventType "swiss"]
[EventCountry "SVK"]
[SourceTitle "playchess.com"]
[Source "ChessBase"]
[SourceQuality "1"]
[TimeControl "40/5400+30:1800+30"]

1. d4 {[%emt 0:00:00]} Nf6 {[%emt 0:00:00]} 2. c4 {[%emt 0:00:00]} c5 {[%emt 0:00:00]} 3. d5 {[%emt 0:00:00]} b5 {[%emt 0:00:00]} 4. cxb5 {[%emt 0:00:00]} a6 {[%emt 0:00:00]} 5. bxa6 {[%emt 0:00:00]} g6 {[%emt 0:00:00]} 6. Nc3 {[%emt 0:00:00]} Bg7 {[%emt 0:00:00]} 7. e4 {[%emt 0:00:00]} O-O {[%emt 0:00:00]} 8. e5 {[%emt 0:00:00]} Ne8 {[%emt 0:00:00]} 9. h4 {[%emt 0:00:00]} Bxe5 {[%emt 0:00:50]} 10. Bh6 {[%emt 0:00:00]} Ng7 {[%emt 0:10:32]} 11. h5 {[%emt 0:00:01]} Bxa6 {[%emt 0:16:44]} 12. Nf3 {[%emt 0:00:09]} Bf6 {[%emt 0:00:03]} 13. Qd2 {[%emt 0:00:05]} e6 {[%emt 0:04:03]} 14. O-O-O {[%emt 0:02:53]} Bxf1 {[%emt 0:00:48]} 15. Rdxf1 {[%emt 0:00:14]} Qa5 {[%emt 0:03:39]} 16. Ne4 {[%emt 0:08:31]} Qxd2+ {[%emt 0:02:15]} 17. Bxd2 {[%emt 0:29:44]} Bd8 {[%emt 0:00:18]} 18. hxg6 {[%emt 0:05:36]} fxg6 {[%emt 0:03:02]} 19. Kb1 {[%emt 0:07:05]} exd5 {[%emt 0:26:31]} 20. Nxc5 {[%emt 0:00:10]} Bb6 {[%emt 0:00:04]} 21. Rc1 {[%emt 0:03:03]} Ne6 {[%emt 0:04:22]} 22. Nxe6 {[%emt 0:01:19]} dxe6 {[%emt 0:00:02]} 23. Ng5 {[%emt 0:00:08]} h5 {[%emt 0:10:51]} 24. Nxe6 {[%emt 0:00:55]} Rxf2 {[%emt 0:00:03]} 25. Rc8+ {[%emt 0:00:17]} Kf7 {[%emt 0:00:03]} 26. Ng5+ {[%emt 0:00:38]} Kf6 {[%emt 0:00:29]} 27. Bc1 {[%emt 0:06:12]} Ke7 {[%emt 0:02:45]} 28. Re1+ {[%emt 0:01:19]} Kd7 {[%emt 0:00:06]} 29. Ree8 {[%emt 0:00:06]} Rf1 {[%emt 0:04:57]} 30. Ne6 {[%emt 0:04:08]} d4 {[%emt 0:00:02]} 31. Nf8+ {[%emt 0:01:05]} Kd6 {[%emt 0:00:03]} 32. Re6+ {[%emt 0:00:36]} Kd5 {[%emt 0:00:06]} 33. Rxb6 {[%emt 0:00:06]} d3 {[%emt 0:00:08]} 34. Rbxb8 {[%emt 0:00:26]} d2 {[%emt 0:00:11]} 35. Rxa8 {[%emt 0:00:42]} d1=Q {[%emt 0:00:04]} 36. Rd8+ {[%emt 0:00:03]} Kc5 {[%emt 0:00:04]} 37. Ne6+ {[%emt 0:00:05]} Kb5 {[%emt 0:00:04]} 38. Rab8+ {[%emt 0:00:06]} Ka5 {[%emt 0:00:07]} 39. b4+ {[%emt 0:00:06]} Ka4 {[%emt 0:00:06]} 40. Nc5# {[%emt 0:00:00]} 1-0

[Event "EYCC Open-U16 2019"]
[Site "Bratislava"]
[Date "2019.08.04"]
[Round "3.18"]
[White "Fernandez Garcia, Gumersindo"]
[Black "Suvorov, Alexander"]
[Result "1/2-1/2"]
[ECO "D35"]
[WhiteElo "2011"]
[BlackElo "2333"]
[Annotator "NA"]
[PlyCount "154"]
[EventDate "2019.08.02"]
[EventType "swiss"]
[EventCountry "SVK"]
[SourceTitle "playchess.com"]
[Source "ChessBase"]
[SourceQuality "1"]
[TimeControl "40/5400+30:1800+30"]

1. d4 {[%emt 0:00:00]} Nf6 {[%emt 0:00:00]} 2. c4 {[%emt 0:00:00]} e6 {[%emt 0:00:00]} 3. Nc3 {[%emt 0:00:00]} d5 {[%emt 0:00:10]} 4. cxd5 {[%emt 0:00:14]} exd5 {[%emt 0:00:41]} 5. Bg5 {[%emt 0:00:13]} Bb4 {[%emt 0:01:04]} 6. e3 {[%emt 0:01:29]} O-O {[%emt 0:01:58]} 7. Nf3 {[%emt 0:00:43]} h6 {[%emt 0:01:31]} 8. Bxf6 {[%emt 0:07:24]} Qxf6 {[%emt 0:00:29]} 9. Qb3 {[%emt 0:00:59]} Qb6 {[%emt 0:06:00]} 10. Bd3 {[%emt 0:03:34]} c6 {[%emt 0:01:43]} 11. O-O {[%emt 0:11:32]} Bd6 {[%emt 0:02:50]} 12. Qxb6 {[%emt 0:13:34]} axb6 {[%emt 0:00:03]} 13. Nh4 {[%emt 0:04:53]} Re8 {[%emt 0:05:00]} 14. Nf5 {[%emt 0:08:15]} Bf8 {[%emt 0:01:06]} 15. a3 {[%emt 0:10:15]} b5 {[%emt 0:06:45]} 16. Ng3 {[%emt 0:07:26]} Nd7 {[%emt 0:05:33]} 17. a4 {[%emt 0:04:23]} b4 {[%emt 0:08:32]} 18. Nce2 {[%emt 0:03:42]} g6 {[%emt 0:01:59]} 19. b3 {[%emt 0:02:07]} f5 {[%emt 0:08:36]} 20. Nf4 {[%emt 0:03:55]} Kg7 {[%emt 0:05:36]} 21. h4 {[%emt 0:01:13]} h5 {[%emt 0:00:38]} 22. Nge2 {[%emt 0:01:17]} Nf6 {[%emt 0:01:50]} 23. g3 {[%emt 0:04:29]} Bd6 {[%emt 0:02:15]} 24. Kg2 {[%emt 0:02:55]} Ra5 {[%emt 0:01:52]} 25. Rac1 {[%emt 0:02:03]} Bd7 {[%emt 0:01:34]} 26. Rc2 {[%emt 0:01:28]} Ne4 {[%emt 0:04:41]} 27. Rfc1 {[%emt 0:01:45]} Rea8 {[%emt 0:00:31]} 28. Re1 {[%emt 0:02:28]} Nf6 {[%emt 0:02:01]} 29. Rec1 {[%emt 0:01:29]} Ne8 {[%emt 0:04:02]} 30. Re1 {[%emt 0:00:15]} Nc7 {[%emt 0:02:14]} 31. Rec1 {[%emt 0:00:01]} Rc8 {[%emt 0:01:32]} 32. Kg1 {[%emt 0:00:32]} Be8 {[%emt 0:00:47]} 33. Kg2 {[%emt 0:01:21]} Bf7 {[%emt 0:01:45]} 34. Kg1 {[%emt 0:00:09]} Ne6 {[%emt 0:00:55]} 35. Nxe6+ {[%emt 0:00:14]} Bxe6 {[%emt 0:00:01]} 36. Nf4 {[%emt 0:00:18]} Bf7 {[%emt 0:00:22]} 37. Kg2 {[%emt 0:00:21]} Raa8 {[%emt 0:01:29]} 38. Be2 {[%emt 0:00:25]} Rc7 {[%emt 0:00:51]} 39. Bf3 {[%emt 0:00:18]} Rac8 {[%emt 0:00:31]} 40. Kf1 {[%emt 0:00:00]} b6 {[%emt 0:00:00]} 41. Ke1 {[%emt 0:09:45]} Kf6 {[%emt 0:02:30]} 42. Kd2 {[%emt 0:01:56]} Ke7 {[%emt 0:00:44]} 43. Bg2 {[%emt 0:02:37]} Bxf4 {[%emt 0:02:06]} 44. gxf4 {[%emt 0:01:29]} Kd6 {[%emt 0:01:51]} 45. a5 {[%emt 0:12:07]} bxa5 {[%emt 0:10:06]} 46. Rc5 {[%emt 0:00:29]} Ra8 {[%emt 0:03:32]} 47. Ra1 {[%emt 0:02:50]} Rca7 {[%emt 0:00:25]} 48. Ra4 {[%emt 0:00:40]} Kc7 {[%emt 0:01:03]} 49. Bf1 {[%emt 0:01:04]} Kb6 {[%emt 0:01:50]} 50. Bd3 {[%emt 0:00:10]} Be6 {[%emt 0:00:44]} 51. Rc1 {[%emt 0:02:11]} Bc8 {[%emt 0:00:21]} 52. Rg1 {[%emt 0:01:01]} Rg7 {[%emt 0:00:27]} 53. Be2 {[%emt 0:00:35]} Raa7 {[%emt 0:00:42]} 54. Rc1 {[%emt 0:01:03]} Rg8 {[%emt 0:00:50]} 55. Rg1 {[%emt 0:00:27]} c5 {[%emt 0:07:51]} 56. dxc5+ {[%emt 0:00:18]} Kxc5 {[%emt 0:00:01]} 57. Bxh5 {[%emt 0:00:54]} Rh8 {[%emt 0:00:32]} 58. Bf3 {[%emt 0:01:03]} Bd7 {[%emt 0:01:06]} 59. Raa1 {[%emt 0:00:28]} Rh6 {[%emt 0:02:18]} 60. Rg5 {[%emt 0:00:39]} Kd6 {[%emt 0:04:57]} 61. Kc2 {[%emt 0:00:24]} Be6 {[%emt 0:02:26]} 62. Kb2 {[%emt 0:00:33]} Ke7 {[%emt 0:05:58]} 63. Rd1 {[%emt 0:00:18]} Rd7 {[%emt 0:00:21]} 64. h5 {[%emt 0:00:41]} Kf6 {[%emt 0:01:31]} 65. hxg6 {[%emt 0:00:31]} Rxg6 {[%emt 0:00:02]} 66. Rxg6+ {[%emt 0:00:15]} Kxg6 {[%emt 0:00:01]} 67. Ra1 {[%emt 0:00:23]} d4 {[%emt 0:01:57]} 68. Rxa5 {[%emt 0:00:32]} dxe3 {[%emt 0:00:13]} 69. fxe3 {[%emt 0:00:17]} Rd3 {[%emt 0:00:41]} 70. Re5 {[%emt 0:01:03]} Rxb3+ {[%emt 0:00:56]} 71. Kc2 {[%emt 0:00:26]} Rc3+ {[%emt 0:00:30]} 72. Kb2 {[%emt 0:00:01]} Kf6 {[%emt 0:00:52]} 73. Bd1 {[%emt 0:00:34]} Rd3 {[%emt 0:04:58]} 74. Bc2 {[%emt 0:00:33]} Rd2 {[%emt 0:00:15]} 75. Kc1 {[%emt 0:00:06]} Rd5 {[%emt 0:01:50]} 76. e4 {[%emt 0:01:20]} Rxe5 {[%emt 0:00:31]} 77. fxe5+ {[%emt 0:00:02]} Kxe5 1/2-1/2

[Event "EYCC Open-U16 2019"]
[Site "Bratislava"]
[Date "2019.08.04"]
[Round "3.19"]
[White "Milosevic, Milos"]
[Black "Fuglestein, Sander"]
[Result "1-0"]
[ECO "B23"]
[WhiteElo "2312"]
[BlackElo "1997"]
[Annotator "NA"]
[PlyCount "81"]
[EventDate "2019.08.02"]
[EventType "swiss"]
[EventCountry "SVK"]
[SourceTitle "playchess.com"]
[Source "ChessBase"]
[SourceQuality "1"]
[TimeControl "40/5400+30:1800+30"]

1. e4 {[%emt 0:00:00]} c5 {[%emt 0:00:00]} 2. Nc3 {[%emt 0:00:00]} Nc6 {[%emt 0:00:00]} 3. f4 {[%emt 0:00:01]} d6 {[%emt 0:01:05]} 4. Nf3 {[%emt 0:00:11]} g6 {[%emt 0:02:15]} 5. Bb5 {[%emt 0:00:38]} Bg7 {[%emt 0:04:34]} 6. Bxc6+ {[%emt 0:00:08]} bxc6 {[%emt 0:00:09]} 7. O-O {[%emt 0:00:12]} Nf6 {[%emt 0:10:14]} 8. d3 {[%emt 0:00:08]} O-O {[%emt 0:00:35]} 9. Qe1 Nd7 {[%emt 0:11:30]} 10. Bd2 {[%emt 0:02:57]} Rb8 {[%emt 0:06:25]} 11. b3 {[%emt 0:00:59]} e6 {[%emt 0:08:52]} 12. Qf2 {[%emt 0:01:13]} f5 {[%emt 0:06:23]} 13. Rae1 {[%emt 0:01:55]} fxe4 {[%emt 0:15:07]} 14. Nxe4 {[%emt 0:03:12]} Nf6 {[%emt 0:02:11]} 15. Neg5 {[%emt 0:11:03]} Re8 {[%emt 0:03:54]} 16. Re2 {[%emt 0:01:11]} h6 {[%emt 0:04:19]} 17. Ne4 {[%emt 0:00:41]} Rb7 {[%emt 0:01:59]} 18. Qg3 {[%emt 0:02:03]} Nxe4 {[%emt 0:02:55]} 19. dxe4 {[%emt 0:02:20]} Kh7 {[%emt 0:02:21]} 20. e5 {[%emt 0:03:28]} Rg8 {[%emt 0:03:07]} 21. Be3 {[%emt 0:08:43]} Qe7 {[%emt 0:03:30]} 22. exd6 {[%emt 0:02:10]} Qxd6 {[%emt 0:00:13]} 23. Ng5+ {[%emt 0:00:49]} Kh8 {[%emt 0:00:52]} 24. Ne4 {[%emt 0:00:21]} Qd5 {[%emt 0:02:06]} 25. Nxc5 {[%emt 0:00:17]} Re7 {[%emt 0:00:56]} 26. Qh4 {[%emt 0:12:22]} Rf7 {[%emt 0:01:55]} 27. Rd2 {[%emt 0:03:42]} Qf5 {[%emt 0:01:09]} 28. Rfd1 {[%emt 0:11:53]} h5 {[%emt 0:01:41]} 29. Qg5 {[%emt 0:02:55]} Qxg5 {[%emt 0:02:06]} 30. fxg5 {[%emt 0:00:04]} e5 {[%emt 0:01:35]} 31. Rd6 {[%emt 0:00:19]} Bg4 {[%emt 0:00:51]} 32. R1d2 {[%emt 0:03:30]} Rgf8 {[%emt 0:00:38]} 33. Rf2 {[%emt 0:04:38]} Rxf2 {[%emt 0:00:29]} 34. Bxf2 {[%emt 0:00:04]} Bf5 {[%emt 0:00:29]} 35. Ne6 {[%emt 0:02:19]} Bxe6 {[%emt 0:00:34]} 36. Rxe6 {[%emt 0:00:06]} Rd8 {[%emt 0:00:09]} 37. Be3 {[%emt 0:00:11]} Rd1+ {[%emt 0:00:42]} 38. Kf2 {[%emt 0:00:06]} Ra1 {[%emt 0:00:37]} 39. a4 {[%emt 0:00:06]} Kg8 {[%emt 0:00:29]} 40. Rxg6 {[%emt 0:00:00]} c5 {[%emt 0:00:00]} 41. Rc6 {[%emt 0:00:25]} 1-0